bitfinex-derivatives/quotes_SOLF0:USTF0_20251209
["timestamp","ask_amount","ask_price","bid_price","bid_amount"]
[1765308863780,0.04963265,142.49,142.46,3.20119431]
[1765308864189,3.03963265,142.49,142.46,0.05119431]
[1765308864680,9.35553265,142.49,142.46,3.26119431]
[1765308864880,6.36553265,142.49,142.46,3.26119431]
[1765308865282,9.56553265,142.49,142.46,3.26119431]
[1765308866079,9.56553265,142.49,142.46,0.05119431]
[1765308866280,3.2,142.47,142.46,0.05119431]
[1765308866674,3.2,142.46,142.4,3.21]
[1765308867080,3.2,142.44,142.4,3.21]
[1765308867285,3.2,142.44,142.39,6.3198]
[1765308867286,3.2,142.44,142.39,9.5298]
[1765308867589,0.0466745,142.43,142.4,0.04579997]
[1765308867782,3.2466745,142.43,142.4,0.04579997]
[1765308868171,0.0466745,142.43,142.4,3.25579997]
[1765308869683,0.0466745,142.43,142.42,3.21]
[1765308871882,3.2,142.49,142.45,3.21]
[1765308872180,59.68,142.5,142.45,3.21]
[1765308872385,59.68,142.5,142.47,9.5265]
[1765308872386,62.88,142.5,142.47,9.5265]
[1765308872789,0.0478379,142.5,142.48,3.21]
[1765308873373,0.0478379,142.5,142.49,9.5256]
[1765308874484,98.1773,142.59,142.47,59.73219026]
[1765308874485,3.2,142.55,142.52,3.21]
[1765308875390,3.2,142.55,142.51,9.5247]
[1765308875590,0.04745475,142.54,142.52,0.04609589]
[1765308876985,3.24745475,142.54,142.52,0.04609589]
[1765308878894,0.04745475,142.54,142.52,3.25609589]
[1765308884798,0.04745475,142.54,142.52,9.57039589]
[1765308888199,0.04745475,142.54,142.53,3.21]
[1765308890198,0.04745475,142.54,142.52,9.57039589]
[1765308890399,0.04745475,142.54,142.52,3.25609589]
[1765308891108,3.24745475,142.54,142.52,0.04609589]
[1765308892100,0.04745475,142.54,142.52,3.25609589]
[1765308897500,0.04745475,142.54,142.53,9.3639]
[1765308898198,3.21,142.6,142.56,3.05]
[1765308899100,0.05018542,142.59,142.57,0.04857308]
[1765308899794,0.05018542,142.59,142.57,3.09857308]
[1765308900801,0.05018542,142.59,142.57,9.41067308]
[1765308901101,0.05018542,142.59,142.58,3.05]
[1765308901300,3.21,142.64,142.58,3.05]
[1765308901597,3.21,142.64,142.57,0.04857308]
[1765308901598,3.21,142.63,142.57,0.04857308]
[1765308901997,3.21,142.59,142.57,0.04857308]
[1765308902295,3.25608675,142.59,142.57,0.04857308]
[1765308902998,0.04608675,142.59,142.57,3.09857308]
[1765308905201,9.56738675,142.59,142.57,3.09857308]
[1765308905402,3.21,142.58,142.57,0.04857308]
[1765308905796,3.15,142.57,142.53,3.05]
[1765308905992,3.15,142.56,142.53,3.05]
[1765308906703,3.19793436,142.56,142.53,3.10096129]
[1765308908111,3.15,142.55,142.53,0.05096129]
[1765308909501,9.4632,142.55,142.53,0.05096129]
[1765308911204,0.04793436,142.56,142.53,3.24096129]
[1765308911713,3.19793436,142.56,142.53,3.24096129]
[1765308912011,59.66,142.55,142.53,0.05096129]
[1765308912204,3.15,142.54,142.53,0.05096129]
[1765308912406,3.15,142.54,142.47,6.46625206]
[1765308912607,3.15,142.54,142.46,3.19]
[1765308912608,3.15,142.53,142.46,3.19]
[1765308913318,9.4649,142.51,142.47,3.19]
[1765308913516,0.04715342,142.5,142.48,0.05126568]
[1765308913920,0.04715342,142.5,142.48,3.24126568]
[1765308915117,0.04715342,142.5,142.48,9.55736568]
[1765308915318,0.04715342,142.5,142.49,3.19]
[1765308916318,3.15,142.54,142.51,9.5047]
[1765308916515,3.15,142.57,142.52,3.19]
[1765308916816,6.3126,142.56,142.52,3.19]
[1765308917119,3.15,142.55,142.52,3.19]
[1765308917318,3.20011859,142.55,142.52,3.23698828]
[1765308917710,3.20011859,142.55,142.52,0.04698828]
[1765308918805,9.4635,142.54,142.52,0.04698828]
[1765308920717,3.15,142.53,142.52,0.04698828]
[1765308921716,9.4635,142.54,142.52,0.04698828]
[1765308923324,3.15,142.53,142.52,0.04698828]
[1765308924218,9.4635,142.54,142.52,0.04698828]
[1765308925422,3.26,142.53,142.52,0.04698828]
[1765308925824,3.26,142.51,142.47,6.46625206]
[1765308926012,3.26,142.51,142.46,9.72625206]
[1765308926322,3.26,142.51,142.46,3.26]
[1765308927026,3.26,142.49,142.47,0.04501342]
[1765308928423,9.5757,142.49,142.47,0.04501342]
[1765308928816,3.26,142.48,142.47,0.04501342]
[1765308932723,6.3157,142.49,142.47,3.30501342]
[1765308932913,3.26,142.48,142.47,0.04501342]
[1765308934318,149.0,142.47,142.4,6.46625206]
[1765308934522,3.26,142.41,142.38,3.26]
[1765308935521,3.30518377,142.41,142.38,3.31097793]
[1765308935724,3.26,142.47,142.39,3.26]
[1765308935911,3.26,142.47,142.4,3.26]
[1765308936526,3.26,142.45,142.4,3.26]
[1765308936716,3.26,142.43,142.41,0.05304898]
[1765308937120,9.5785,142.43,142.41,0.05304898]
[1765308937419,3.26,142.42,142.41,0.05304898]
[1765308940325,3.30891008,142.44,142.41,0.05304898]
[1765308940928,3.30891008,142.44,142.41,3.31304898]
[1765308941824,3.30891008,142.44,142.41,0.05304898]
[1765308943634,3.26,142.43,142.41,0.05304898]
[1765308944325,6.36691008,142.44,142.41,3.31304898]
[1765308944531,0.04891008,142.44,142.41,3.31304898]
[1765308945625,0.04891008,142.44,142.41,9.63204898]
[1765308945931,0.04891008,142.44,142.42,3.26]
[1765308947630,3.30891008,142.44,142.41,3.31304898]
[1765308947835,3.30891008,142.44,142.41,0.05304898]
[1765308949538,9.62691008,142.44,142.41,3.31304898]
[1765308950834,3.26,142.43,142.41,0.05304898]
[1765308954433,3.26,142.42,142.36,6.46625206]
[1765308954626,3.26,142.42,142.35,9.72625206]
[1765308954828,3.26,142.42,142.35,3.26]
[1765308955541,3.03464819,142.4,142.37,0.05010663]
[1765308960842,0.04464819,142.4,142.37,3.32010663]
[1765308961540,0.04464819,142.4,142.39,3.27]
[1765308961742,6.3178,142.45,142.39,3.27]
[1765308962047,9.3078,142.45,142.39,3.27]
[1765308962346,2.99,142.44,142.39,3.27]
[1765308962542,2.99,142.43,142.36,3.27]
[1765308962739,0.05065013,142.41,142.36,3.27]
[1765308962941,0.05065013,142.41,142.38,3.32190265]
[1765308963144,0.05065013,142.41,142.39,3.27]
[1765308963642,0.05065013,142.41,142.39,9.5898]
[1765308965044,0.05065013,142.41,142.4,3.08]
[1765308968446,5.81844995,142.49,142.43,3.08]
[1765308968650,3.08,142.49,142.43,3.08]
[1765308969154,3.08,142.46,142.43,9.3982]
[1765308969341,9.3966,142.47,142.44,3.08]
[1765308969545,9.44338651,142.47,142.44,3.13323792]
[1765308970250,3.08,142.46,142.44,0.05323792]
[1765308970750,3.08,142.45,142.44,0.05323792]
[1765308971152,3.08,142.44,142.4,6.48439797]
[1765308971352,3.08,142.44,142.39,6.48439797]
[1765308971653,3.08,142.44,142.38,6.48439797]
[1765308972249,3.1278138,142.42,142.4,0.04540643]
[1765308973251,0.0478138,142.42,142.4,3.12540643]
[1765308973452,3.1278138,142.42,142.4,0.04540643]
[1765308973955,3.08,142.41,142.4,0.04540643]
[1765308974154,5.81844995,142.41,142.4,0.04540643]
[1765308974552,3.08,142.41,142.4,0.04540643]
[1765308976649,6.3666138,142.42,142.4,0.04540643]
[1765308976854,0.0478138,142.42,142.4,0.04540643]
[1765308977056,3.1278138,142.42,142.4,0.04540643]
[1765308977949,0.0478138,142.42,142.4,3.12540643]
[1765308978349,3.1278138,142.42,142.4,0.04540643]
[1765308980155,9.4466138,142.42,142.4,0.04540643]
[1765308980358,3.08,142.41,142.4,0.04540643]
[1765308981255,9.4466138,142.42,142.4,0.04540643]
[1765308981464,3.08,142.41,142.4,0.04540643]
[1765308981657,0.0478138,142.42,142.4,0.04540643]
[1765308981862,3.1278138,142.42,142.4,0.04540643]
[1765308982661,0.0478138,142.42,142.4,3.12540643]
[1765308983060,0.0478138,142.42,142.41,3.08]
[1765308983250,3.1278138,142.42,142.4,6.5298044]
[1765308983458,3.1278138,142.42,142.4,0.04540643]
[1765308984564,3.2478138,142.42,142.4,0.04540643]
[1765308988168,9.5666138,142.42,142.4,0.04540643]
[1765308988466,3.2,142.41,142.4,0.04540643]
[1765308988852,5.93844995,142.41,142.4,0.04540643]
[1765308990664,0.0478138,142.42,142.4,3.14540643]
[1765308990859,3.2,142.5,142.42,3.1]
[1765308991167,3.2,142.5,142.43,9.59640023]
[1765308991367,3.2,142.5,142.43,3.1]
[1765308991769,3.2,142.47,142.45,0.04907263]
[1765308992864,3.2,142.46,142.4,6.49640023]
[1765308993067,3.2,142.45,142.39,9.59640023]
[1765308993271,3.2,142.43,142.39,15.91640023]
[1765308993861,0.04605024,142.42,142.4,0.05301436]
[1765308994062,0.04605024,142.42,142.4,6.37251436]
[1765308994375,0.04605024,142.42,142.4,9.47251436]
[1765308996170,0.04605024,142.42,142.4,3.15301436]
[1765309003783,0.04605024,142.42,142.4,9.47261436]
[1765309003980,0.04605024,142.42,142.41,3.1]
[1765309009784,0.04605024,142.42,142.41,9.4192]
[1765309011986,0.04605024,142.42,142.41,15.91560023]
[1765309014084,0.04605024,142.42,142.41,9.4192]
[1765309014881,0.04605024,142.42,142.41,3.01]
[1765309015473,3.26605024,142.42,142.4,0.05301436]
[1765309015692,3.26605024,142.42,142.4,3.06301436]
[1765309015882,0.04605024,142.42,142.4,3.06301436]
[1765309016080,0.04605024,142.42,142.41,3.01]
[1765309017389,0.04605024,142.42,142.41,15.82560023]
[1765309017594,3.22,142.48,142.42,3.01]
[1765309017888,6.3166,142.47,142.43,9.3283]
[1765309018193,9.5366,142.47,142.44,3.01]
[1765309018696,9.58931929,142.47,142.44,3.05923704]
[1765309018987,0.05271929,142.47,142.44,3.05923704]
[1765309019180,0.05271929,142.47,142.46,9.50401488]
[1765309020088,2.73844995,142.53,142.47,3.01]
[1765309020296,3.22,142.53,142.47,3.01]
[1765309020493,3.22,142.53,142.48,3.01]
[1765309020884,3.22,142.52,142.47,3.01]
[1765309021085,3.22,142.5,142.48,0.05129586]
[1765309021388,3.22,142.49,142.48,0.05129586]
[1765309022198,3.27038582,142.51,142.48,3.06129586]
[1765309028400,9.58528582,142.51,142.48,0.05129586]
[1765309028702,3.01,142.5,142.48,0.05129586]
[1765309029601,9.3254,142.5,142.48,0.05129586]
[1765309030195,3.01,142.49,142.48,0.05129586]
[1765309031705,0.05038582,142.51,142.48,3.04129586]
[1765309032805,0.05038582,142.51,142.49,9.3055]
[1765309033205,0.05038582,142.51,142.5,2.99]
[1765309034606,0.05038582,142.51,142.49,9.3055]
[1765309035704,0.05038582,142.51,142.5,2.99]
[1765309036802,3.06038582,142.51,142.49,6.3155]
[1765309037006,0.05038582,142.51,142.49,9.3055]
[1765309038704,0.05038582,142.51,142.5,2.99]
[1765309039714,0.05038582,142.51,142.49,9.3055]
[1765309040808,0.05038582,142.51,142.5,2.99]
[1765309041220,0.05038582,142.51,142.5,9.3052]
[1765309042813,3.06038582,142.51,142.48,6.36699586]
[1765309043109,3.06038582,142.51,142.48,0.05129586]
[1765309043905,3.01,142.5,142.48,3.04129586]
[1765309044221,0.05038582,142.51,142.48,3.04129586]
[1765309044402,0.05038582,142.51,142.49,6.3156]
[1765309044608,0.05038582,142.51,142.5,2.99]
[1765309047121,0.05038582,142.51,142.49,9.3856]
[1765309049917,0.05038582,142.51,142.49,3.07]
[1765309051117,3.05,142.5,142.48,0.05129586]
[1765309052513,9.3657,142.49,142.48,0.05129586]
[1765309053624,9.41558582,142.51,142.48,3.12129586]
[1765309053918,3.05,142.5,142.48,0.05129586]
[1765309056924,0.05038582,142.51,142.49,3.07]
[1765309057820,0.05038582,142.51,142.49,9.3856]
[1765309058121,3.10038582,142.51,142.48,3.12129586]
[1765309058917,3.10038582,142.51,142.48,0.05129586]
[1765309059822,9.3657,142.49,142.48,0.05129586]
[1765309070831,3.05,142.5,142.48,0.05129586]
[1765309071036,3.05,142.5,142.48,3.12129586]
[1765309072526,3.10038582,142.51,142.48,3.12129586]
[1765309072741,0.05038582,142.51,142.48,3.12129586]
[1765309073030,0.05038582,142.51,142.5,9.4152]
[1765309073636,2.97,142.57,142.54,3.1]
[1765309074627,3.01538334,142.57,142.54,3.14904677]
[1765309075940,0.04538334,142.57,142.54,3.14904677]
[1765309076137,0.04538334,142.57,142.54,9.64460968]
[1765309076333,0.04538334,142.57,142.55,3.1]
[1765309080531,3.30538334,142.57,142.54,3.14904677]
[1765309080728,3.30538334,142.57,142.54,0.04904677]
[1765309081641,3.26,142.55,142.54,0.04904677]
[1765309084639,0.04538334,142.57,142.54,3.14904677]
[1765309085238,0.04538334,142.57,142.55,9.4129]
[1765309086045,0.04538334,142.57,142.56,3.1]
[1765309086260,0.04538334,142.57,142.54,0.04904677]
[1765309086450,3.30538334,142.57,142.54,0.04904677]
[1765309086743,3.30538334,142.57,142.54,3.14904677]
[1765309087547,0.04538334,142.57,142.54,3.14904677]
[1765309087843,0.04538334,142.57,142.54,9.46234677]
[1765309088044,0.04538334,142.57,142.55,3.1]
[1765309088354,3.26,142.64,142.55,3.1]
[1765309088546,6.31,142.62,142.59,3.1]
[1765309088744,9.57,142.62,142.59,3.1]
[1765309089244,3.16,142.58,142.54,3.25]
[1765309089450,5.89199935,142.57,142.54,3.25]
[1765309089747,5.89199935,142.57,142.56,0.04548543]
[1765309089950,3.16,142.56,142.55,0.0538155]
[1765309090345,9.4726,142.56,142.55,0.0538155]
[1765309092647,9.474,142.53,142.48,3.25]
[1765309092950,3.16,142.52,142.48,3.25]
[1765309093453,9.4732,142.55,142.5,3.25]
[1765309093654,62.39199935,142.57,142.5,3.25]
[1765309093955,0.0482729,142.54,142.52,3.25]
[1765309098355,3.2082729,142.54,142.52,3.25]
[1765309098556,3.2082729,142.54,142.51,3.2950415]
[1765309100456,0.0482729,142.54,142.51,3.2950415]
[1765309106061,0.0482729,142.54,142.51,9.6097415]
[1765309106354,0.0482729,142.54,142.52,3.15]
[1765309106962,0.0482729,142.54,142.53,3.15]
[1765309107561,65.55199935,142.59,142.55,3.15]
[1765309108463,0.02239679,142.58,142.56,3.199686]
[1765309110462,0.02239679,142.58,142.57,3.15]
[1765309117762,0.02239679,142.58,142.57,9.4621]
[1765309118069,62.82,142.62,142.58,3.15]
[1765309118261,59.66,142.62,142.58,3.15]
[1765309118464,59.66,142.62,142.6,3.15]
[1765309119172,59.66,142.62,142.6,3.19988669]
[1765309119674,59.66,142.62,142.61,3.15]
[1765309120062,9.4691,142.64,142.61,3.15]
[1765309121271,3.16,142.64,142.61,9.4603]
[1765309121472,3.16,142.65,142.62,3.15]
[1765309121673,62.8,142.67,142.62,3.15]
[1765309121863,3.16,142.68,142.66,3.15]
[1765309122062,3.16,142.69,142.66,3.15]
[1765309122360,3.16,142.69,142.66,3.19776829]
[1765309122862,9.4664,142.7,142.67,3.15]
[1765309123062,3.16,142.69,142.66,0.04776829]
[1765309123263,6.3064,142.7,142.67,3.15]
[1765309123462,9.4664,142.7,142.67,3.15]
[1765309125966,3.16,142.67,142.66,0.04776829]
[1765309126772,3.16,142.67,142.58,3.15]
[1765309126969,3.16,142.65,142.58,3.15]
[1765309127171,9.4688,142.65,142.6,6.3104]
[1765309127377,3.16,142.64,142.6,9.4604]
[1765309127678,0.04776829,142.63,142.61,0.04552271]
[1765309129271,3.20776829,142.63,142.61,0.04552271]
[1765309129478,5.89199935,142.62,142.61,0.04552271]
[1765309130579,3.16,142.62,142.61,0.04552271]
[1765309135083,5.89199935,142.62,142.61,0.04552271]
[1765309135582,2.73199935,142.62,142.61,0.04552271]
[1765309135788,0.04776829,142.63,142.61,3.08552271]
[1765309136187,0.04776829,142.63,142.61,9.39582271]
[1765309136388,0.04776829,142.63,142.62,3.04]
[1765309139190,0.04776829,142.63,142.61,3.08552271]
[1765309141192,0.04776829,142.63,142.62,3.04]
[1765309143302,3.31776829,142.63,142.61,3.08552271]
[1765309143496,3.31776829,142.63,142.61,0.04552271]
[1765309144501,9.62726829,142.63,142.61,0.04552271]
[1765309145505,6.35726829,142.63,142.61,3.21552271]
[1765309145903,9.42726829,142.63,142.61,3.21552271]
[1765309146204,9.42726829,142.63,142.61,0.04552271]
[1765309147510,3.07,142.62,142.61,0.04552271]
[1765309147804,9.08926764,142.63,142.61,3.21552271]
[1765309148099,12.15926764,142.63,142.61,3.21552271]
[1765309148405,12.15926764,142.63,142.61,0.04552271]
[1765309149208,0.04776829,142.63,142.61,3.21552271]
[1765309149903,0.04776829,142.63,142.62,3.17]
[1765309150503,3.11776829,142.63,142.61,0.04552271]
[1765309151112,3.07,142.62,142.61,0.04552271]
[1765309154910,6.3108,142.6,142.56,9.66556291]
[1765309155116,3.07,142.59,142.56,3.17]
[1765309155911,3.07,142.59,142.57,3.17]
[1765309156114,3.12224807,142.59,142.57,3.17]
[1765309156516,0.05224807,142.59,142.57,3.17]
[1765309163323,0.05224807,142.59,142.57,9.4821]
[1765309163620,0.05224807,142.59,142.58,3.17]
[1765309169822,3.22224807,142.59,142.56,9.61922146]
[1765309170130,3.22224807,142.59,142.56,3.11856458]
[1765309170727,9.53354807,142.59,142.56,3.11856458]
[1765309170928,6.36354807,142.59,142.56,3.11856458]
[1765309173929,9.53354807,142.59,142.56,3.11856458]
[1765309175033,0.05224807,142.59,142.56,9.43096458]
[1765309175226,0.05224807,142.59,142.57,3.07]
[1765309175723,0.05224807,142.59,142.58,3.07]
[1765309176627,0.05224807,142.59,142.58,9.3817]
[1765309178232,3.17,142.64,142.6,3.07]
[1765309178826,6.3091,142.64,142.61,3.07]
[1765309179223,6.35014292,142.64,142.61,3.11584003]
[1765309180926,9.52014292,142.64,142.61,3.11584003]
[1765309181734,3.17,142.63,142.61,3.11584003]
[1765309182032,9.52014292,142.64,142.61,3.11584003]
[1765309183027,3.17,142.63,142.61,0.04584003]
[1765309183235,9.4796,142.63,142.61,0.04584003]
[1765309183438,3.17,142.62,142.61,0.04584003]
[1765309185838,9.4796,142.63,142.61,0.04584003]
[1765309186838,0.04104292,142.64,142.61,3.11584003]
[1765309187038,3.21104292,142.64,142.61,3.11584003]
[1765309190738,9.52024292,142.64,142.61,3.11584003]
[1765309190940,3.17,142.63,142.61,0.04584003]
[1765309191842,9.4799,142.62,142.61,0.04584003]
[1765309197241,3.19,142.63,142.61,0.04584003]
[1765309197638,3.19,142.6,142.53,3.25]
[1765309197834,98.1634,142.61,142.53,3.25]
[1765309197835,3.19,142.58,142.53,3.25]
[1765309198143,3.19,142.58,142.56,3.25]
[1765309198742,3.24198735,142.58,142.56,3.29433389]
[1765309198943,0.05198735,142.58,142.56,9.60673389]
[1765309199247,0.05198735,142.58,142.57,3.25]
[1765309201755,0.05198735,142.58,142.56,16.11465422]
[1765309202048,0.05198735,142.58,142.57,3.25]
[1765309202250,0.05198735,142.58,142.57,9.75792033]
[1765309202947,3.19,142.62,142.59,3.25]
[1765309203148,59.64,142.63,142.59,3.25]
[1765309203346,59.64,142.63,142.6,3.25]
[1765309203951,59.67489561,142.63,142.6,3.30104424]
[1765309204550,59.67489561,142.63,142.61,3.25]
[1765309204748,0.03489561,142.63,142.61,3.25]
[1765309205448,0.03489561,142.63,142.61,9.5603]
[1765309205651,0.03489561,142.63,142.62,3.01]
[1765309206451,0.03489561,142.63,142.61,9.3203]
[1765309206650,0.03489561,142.63,142.62,3.01]
[1765309209658,0.03489561,142.63,142.61,3.01]
[1765309209954,3.12489561,142.63,142.61,3.01]
[1765309210160,3.12489561,142.63,142.61,9.3203]
[1765309210161,0.03489561,142.63,142.61,9.3203]
[1765309211265,0.03489561,142.63,142.62,3.01]
[1765309213568,0.03489561,142.63,142.62,9.3199]
[1765309213966,3.09,142.66,142.64,3.01]
[1765309214155,3.09,142.67,142.64,3.01]
[1765309214468,3.09,142.68,142.65,9.3185]
[1765309214666,3.09,142.68,142.66,3.01]
[1765309214860,3.09,142.67,142.63,3.01]
[1765309215062,3.09,142.67,142.64,0.04453805]
[1765309215260,3.09,142.67,142.64,9.36353805]
[1765309215466,3.09,142.67,142.64,0.04453805]
[1765309216068,2.73084143,142.68,142.64,0.04453805]
[1765309216069,3.09,142.65,142.64,0.04453805]
[1765309224576,9.5783,142.66,142.64,0.04453805]
[1765309225168,3.27,142.65,142.64,0.04453805]
[1765309229376,3.27,142.65,142.6,6.50432172]
[1765309229377,3.27,142.63,142.6,6.50432172]
[1765309229578,3.27,142.62,142.59,6.50432172]
[1765309229978,3.27,142.62,142.58,6.50432172]
[1765309230476,3.31453805,142.61,142.59,0.04707972]
[1765309231275,9.62493805,142.61,142.59,0.04707972]
[1765309231480,3.27,142.6,142.59,0.04707972]
[1765309235081,9.62493805,142.61,142.59,0.04707972]
[1765309235284,3.27,142.6,142.59,0.04707972]
[1765309238083,3.27,142.58,142.54,15.94742172]
[1765309238276,3.27,142.58,142.54,9.4431]
[1765309238988,0.05137832,142.57,142.55,0.05345641]
[1765309239191,0.05137832,142.57,142.55,3.18345641]
[1765309243988,0.05137832,142.57,142.56,3.13]
[1765309245093,3.27,142.61,142.57,6.3121]
[1765309245392,3.27,142.61,142.58,3.13]
[1765309246189,3.31023945,142.61,142.58,3.17902268]
[1765309247590,9.62063945,142.61,142.58,3.17902268]
[1765309249889,0.04023945,142.61,142.58,3.17902268]
[1765309251590,0.04023945,142.61,142.59,9.4412]
[1765309252392,3.31023945,142.61,142.59,3.13]
[1765309252580,0.04023945,142.61,142.59,3.13]
[1765309253394,3.31023945,142.61,142.58,3.17902268]
[1765309253792,0.04023945,142.61,142.58,3.17902268]
[1765309254092,3.31023945,142.61,142.58,3.17902268]
[1765309254397,0.04023945,142.61,142.6,3.13]
[1765309260594,6.3087,142.65,142.61,3.26]
[1765309261097,9.4787,142.65,142.61,3.26]
[1765309261595,9.4787,142.65,142.62,3.31224897]
[1765309262803,6.3087,142.65,142.62,3.31224897]
[1765309263498,9.4787,142.65,142.62,3.31224897]
[1765309265700,2.98,142.64,142.62,0.05224897]
[1765309265902,2.98,142.64,142.62,3.26224897]
[1765309266398,2.98,142.64,142.62,0.05224897]
[1765309267406,2.98,142.64,142.62,3.26224897]
[1765309273210,2.98,142.64,142.62,0.05224897]
[1765309273909,9.2895,142.63,142.62,0.05224897]
[1765309282833,6.3095,142.63,142.62,0.05224897]
[1765309283131,6.3095,142.63,142.62,3.26224897]
[1765309284429,59.62,142.64,142.62,3.26224897]
[1765309284823,62.86,142.64,142.62,3.26224897]
[1765309285422,59.62,142.64,142.62,3.26224897]
[1765309286635,9.549,142.65,142.62,3.26224897]
[1765309288030,3.24,142.64,142.62,3.26224897]
[1765309289550,3.24,142.64,142.62,9.57214897]
[1765309290337,59.62,142.67,142.62,0.05224897]
[1765309290338,9.5495,142.63,142.62,0.05224897]
[1765309291040,3.24,142.64,142.62,3.31224897]
[1765309291337,3.24,142.64,142.62,0.05224897]
[1765309292643,9.5491,142.64,142.62,0.05224897]
[1765309293237,9.5491,142.64,142.62,3.31224897]
[1765309293631,9.5491,142.64,142.62,0.05224897]
[1765309294745,3.24,142.64,142.62,0.05224897]
[1765309299948,3.24,142.64,142.62,3.31224897]
[1765309300245,3.24,142.64,142.62,0.05224897]
[1765309301747,9.549,142.64,142.62,0.05224897]
[1765309302649,3.24,142.63,142.62,0.05224897]
[1765309302849,9.5495,142.63,142.62,0.05224897]
[1765309306348,3.24,142.6,142.58,3.54118223]
[1765309306549,3.24,142.6,142.57,3.26]
[1765309306848,9.5513,142.59,142.57,3.26]
[1765309307046,9.5513,142.59,142.56,6.3122]
[1765309307047,3.24,142.58,142.56,9.5722]
[1765309307243,3.29138199,142.58,142.56,0.0480419]
[1765309307551,9.60308199,142.58,142.56,0.0480419]
[1765309308050,3.24,142.57,142.56,0.0480419]
[1765309312255,9.5521,142.57,142.56,0.0480419]
[1765309312957,0.05138199,142.58,142.56,0.0480419]
[1765309312958,3.29138199,142.58,142.56,0.0480419]
[1765309315054,102.42635328,142.62,142.57,3.26]
[1765309315055,3.27,142.62,142.57,3.26]
[1765309316256,3.27,142.61,142.58,9.5716]
[1765309316446,3.27,142.61,142.58,6.3116]
[1765309317455,3.27,142.61,142.58,9.5716]
[1765309317657,9.58,142.62,142.59,3.26]
[1765309317855,3.27,142.61,142.59,3.30550625]
[1765309319654,6.3094,142.64,142.59,3.30550625]
[1765309319860,3.27,142.63,142.59,9.61660625]
[1765309320856,59.64,142.65,142.59,9.61660625]
[1765309320857,3.27,142.64,142.61,3.26]
[1765309323661,3.27,142.62,142.59,0.04550625]
[1765309327067,3.16,142.6,142.59,0.04550625]
[1765309327464,3.16,142.6,142.53,3.0]
[1765309327767,3.16,142.59,142.53,3.0]
[1765309328370,0.04637323,142.57,142.55,0.04557811]
[1765309328672,3.20637323,142.57,142.55,0.04557811]
[1765309329168,3.16,142.56,142.55,0.04557811]
[1765309330070,3.16,142.54,142.48,11.68915664]
[1765309330275,3.16,142.54,142.49,3.0]
[1765309331179,0.05217943,142.53,142.5,3.04653881]
[1765309331863,3.21217943,142.53,142.5,3.04653881]
[1765309332069,3.16,142.52,142.5,0.04653881]
[1765309332870,5.89613846,142.51,142.5,0.04653881]
[1765309337168,3.16,142.49,142.44,3.0]
[1765309337374,3.16,142.48,142.44,3.0]
[1765309337883,3.16,142.47,142.43,3.0]
[1765309338183,0.05091855,142.46,142.44,3.05047766]
[1765309338379,3.21091855,142.46,142.44,0.05047766]
[1765309339280,5.89613846,142.45,142.44,0.05047766]
[1765309340983,0.05091855,142.46,142.44,3.05047766]
[1765309341287,3.21091855,142.46,142.44,0.05047766]
[1765309341488,5.89613846,142.45,142.44,0.05047766]
[1765309344387,3.16,142.44,142.39,3.0]
[1765309344583,5.71613846,142.43,142.39,3.0]
[1765309344789,2.98,142.42,142.36,9.5411]
[1765309344986,9.2994,142.41,142.37,3.22]
[1765309345284,9.2994,142.41,142.38,3.27174399]
[1765309345285,0.04662598,142.4,142.38,3.27174399]
[1765309349092,52.24,142.45,142.38,3.27174399]
[1765309349795,49.26,142.45,142.41,3.22]
[1765309349994,49.26,142.45,142.43,3.22]
[1765309349995,0.04700156,142.44,142.43,3.22]
[1765309351689,0.04700156,142.44,142.42,0.04668025]
[1765309351690,3.02700156,142.44,142.42,0.04668025]
[1765309354300,2.98,142.43,142.42,0.04668025]
[1765309358303,2.98,142.41,142.38,3.22]